bitfinex-derivatives/quotes_BTCF0:USTF0_20250125
["timestamp","ask_amount","ask_price","bid_price","bid_amount"]
[1737786067310,0.82961956,104240.0,104230.0,0.18656406]
[1737786072513,0.82961956,104240.0,104230.0,0.15496406]
[1737786074916,0.82961956,104240.0,104230.0,0.16599232]
[1737786078116,0.88674042,104240.0,104230.0,0.16599232]
[1737786078818,0.88674042,104240.0,104230.0,0.01246732]
[1737786079320,0.88674042,104240.0,104230.0,0.16599532]
[1737786081422,0.94383377,104240.0,104230.0,0.16599532]
[1737786083717,0.80130073,104240.0,104230.0,0.16599532]
[1737786084019,0.80130073,104240.0,104230.0,0.16455626]
[1737786087525,0.74332719,104240.0,104230.0,0.16455626]
[1737786088720,0.17103965,104240.0,104230.0,0.5833298]
[1737786088925,0.17103965,104240.0,104230.0,0.74446686]
[1737786089129,0.17103965,104240.0,104230.0,0.78416106]
[1737786092627,0.1996531,104240.0,104230.0,0.78416106]
[1737786092833,0.14260936,104250.0,104240.0,0.153514]
[1737786093020,0.14260936,104250.0,104240.0,0.71893462]
[1737786093225,0.14260936,104250.0,104240.0,0.75859836]
[1737786093530,0.14260936,104250.0,104240.0,0.70062482]
[1737786094032,0.14260936,104250.0,104240.0,0.69880482]
[1737786094224,0.14260936,104250.0,104240.0,0.75677836]
[1737786094428,0.14260936,104250.0,104240.0,0.69880482]
[1737786094624,0.14260936,104250.0,104240.0,0.75677836]
[1737786094833,0.14260936,104250.0,104240.0,0.69880482]
[1737786095329,0.14260936,104250.0,104240.0,0.65914108]
[1737786096429,0.00024915,104260.0,104250.0,0.153499]
[1737786096623,0.00024915,104260.0,104250.0,0.57227254]
[1737786103430,0.00024915,104260.0,104250.0,0.58294116]
[1737786105429,0.03254915,104260.0,104250.0,0.58294116]
[1737786107742,0.03254915,104260.0,104250.0,0.61484116]
[1737786111334,0.00024915,104260.0,104250.0,0.6728147]
[1737786111636,0.00024915,104260.0,104250.0,0.64794116]
[1737786113941,0.00024915,104260.0,104250.0,0.61484116]
[1737786114142,0.03274915,104260.0,104250.0,0.61484116]
[1737786116444,0.03274915,104260.0,104250.0,0.65544572]
[1737786117644,0.03274915,104260.0,104250.0,0.61484116]
[1737786118245,0.03274915,104260.0,104250.0,0.65611854]
[1737786121848,0.00024915,104260.0,104250.0,0.65611854]
[1737786124643,0.00024915,104260.0,104250.0,0.69579173]
[1737786129151,0.00024915,104260.0,104250.0,0.72729173]
[1737786131749,0.05822269,104260.0,104250.0,0.27701819]
[1737786132053,0.45192269,104260.0,104250.0,0.16416762]
[1737786133757,0.23373205,104260.0,104250.0,0.16416762]
[1737786136553,0.59453205,104260.0,104250.0,0.16416762]
[1737786137954,0.23373205,104260.0,104250.0,0.16416762]
[1737786143160,0.23373205,104260.0,104250.0,0.22214116]
[1737786143350,0.17575851,104260.0,104250.0,0.22214116]
[1737786144256,0.14285851,104260.0,104250.0,0.22214116]
[1737786144558,0.14285851,104260.0,104250.0,0.61384116]
[1737786145461,0.00024915,104260.0,104250.0,0.61384116]
[1737786145660,0.00024915,104260.0,104250.0,0.68670341]
[1737786146761,0.14260936,104270.0,104260.0,0.153484]
[1737786146949,0.14260936,104270.0,104260.0,0.77553818]
[1737786147153,1e-08,104270.0,104260.0,0.77553724]
[1737786147559,1e-08,104270.0,104260.0,0.81518633]
[1737786147862,1e-08,104270.0,104260.0,0.91110499]
[1737786148061,1e-08,104270.0,104260.0,0.96907853]
[1737786148955,0.17118303,104280.0,104260.0,0.81559453]
[1737786149258,0.17118303,104280.0,104270.0,0.63021708]
[1737786149465,0.17118303,104280.0,104270.0,0.77179233]
[1737786149966,0.42759913,104300.0,104290.0,0.15344]
[1737786150262,0.42759913,104300.0,104290.0,0.57221354]
[1737786150653,0.42759913,104300.0,104290.0,0.63601354]
[1737786151257,0.42759913,104300.0,104290.0,0.76534708]
[1737786151462,0.42759913,104300.0,104290.0,0.70737354]
[1737786151659,0.42759913,104300.0,104290.0,0.83353191]
[1737786152558,0.42759913,104300.0,104290.0,1.19433191]
[1737786152763,0.42759913,104300.0,104290.0,1.23458745]
[1737786153264,0.42759913,104300.0,104290.0,1.27411923]
[1737786153651,0.42759913,104300.0,104290.0,1.19433191]
[1737786154160,0.54120666,104310.0,104300.0,0.153425]
[1737786154357,0.00014338,104310.0,104300.0,0.60247504]
[1737786155053,0.00014338,104310.0,104300.0,0.69835691]
[1737786157868,0.00014338,104310.0,104300.0,0.70870488]
[1737786159360,0.06563832,104330.0,104320.0,0.153396]
[1737786159361,0.00143832,104330.0,104320.0,0.153396]
[1737786159554,0.00143832,104330.0,104320.0,0.24164604]
[1737786159757,0.00143832,104330.0,104320.0,0.153396]
[1737786160163,0.03293832,104330.0,104320.0,0.153396]
[1737786164265,0.03293832,104330.0,104320.0,0.16365832]
[1737786166677,0.06503832,104330.0,104320.0,0.16365832]
[1737786168166,0.06503832,104330.0,104320.0,0.153396]
[1737786171072,0.00143832,104330.0,104320.0,0.24164604]
[1737786173569,0.00143832,104330.0,104320.0,0.153396]
[1737786174673,0.45048836,104330.0,104320.0,0.153396]
[1737786174980,0.66726936,104330.0,104320.0,0.153396]
[1737786175170,0.66726936,104330.0,104310.0,0.16377246]
[1737786175365,0.0309,104320.0,104310.0,0.16377246]
[1737786176480,0.11915004,104320.0,104310.0,0.16377246]
[1737786180087,0.0309,104320.0,104310.0,0.16377246]
[1737786180479,0.14474047,104320.0,104310.0,0.16377246]
[1737786183578,0.1733507,104320.0,104310.0,0.16377246]
[1737786187289,0.0309,104320.0,104310.0,0.52457246]
[1737786187585,0.36223832,104330.0,104310.0,0.5232155]
[1737786187786,0.36223832,104330.0,104320.0,0.153396]
[1737786188688,0.36223832,104330.0,104320.0,0.24164604]
[1737786188886,0.36223832,104330.0,104320.0,0.153396]
[1737786195197,0.50494181,104330.0,104320.0,0.153396]
[1737786195395,0.50494181,104330.0,104320.0,0.24164604]
[1737786195596,0.50494181,104330.0,104320.0,0.153396]
[1737786195796,0.56284944,104330.0,104320.0,0.153396]
[1737786196892,0.71623044,104330.0,104320.0,0.153396]
[1737786197791,0.65832281,104330.0,104320.0,0.153396]
[1737786197993,0.62331363,104330.0,104320.0,0.153396]
[1737786198192,0.98411363,104330.0,104320.0,0.153396]
[1737786201502,0.84141014,104330.0,104320.0,0.153396]
[1737786203002,0.85152024,104330.0,104320.0,0.153396]
[1737786206297,0.85152024,104330.0,104310.0,0.16377246]
[1737786206604,0.186096,104320.0,104310.0,0.16377246]
[1737786207208,0.63514263,104320.0,104310.0,0.00014338]
[1737786210815,0.80638682,104320.0,104310.0,0.00014338]
[1737786212002,0.153411,104310.0,104300.0,0.153423]
[1737786212206,0.66615763,104310.0,104300.0,0.153423]
[1737786213809,0.92270805,104310.0,104300.0,0.153423]
[1737786216711,0.153425,104300.0,104290.0,0.00158144]
[1737786216917,0.63397163,104300.0,104290.0,0.00158144]
[1737786217220,0.63397163,104300.0,104290.0,0.00014338]
[1737786221312,0.80521582,104300.0,104290.0,0.00014338]
[1737786221512,0.94774383,104300.0,104290.0,0.00014338]
[1737786221718,0.97541042,104300.0,104290.0,0.00014338]
[1737786223417,0.21139661,104290.0,104280.0,9.299e-05]
[1737786223606,0.60309661,104290.0,104280.0,9.299e-05]
[1737786223811,0.63346377,104290.0,104280.0,9.299e-05]
[1737786224206,0.66556377,104290.0,104280.0,9.299e-05]
[1737786226519,0.153455,104280.0,104270.0,0.00014338]
[1737786226719,0.72270254,104280.0,104270.0,0.00014338]
[1737786227019,0.63437877,104280.0,104270.0,0.00014338]
[1737786229519,0.546055,104280.0,104270.0,0.15361338]
[1737786229710,0.63447711,104280.0,104270.0,0.15361338]
[1737786231226,0.8334269,104280.0,104270.0,0.15361338]
[1737786233423,0.74510313,104280.0,104270.0,0.15361338]
[1737786233620,0.74510313,104280.0,104270.0,0.21771338]
[1737786233817,0.71330313,104280.0,104270.0,0.21771338]
[1737786234527,0.59959896,104280.0,104270.0,0.21771338]
[1737786235628,0.44614396,104280.0,104270.0,0.21771338]
[1737786235816,0.44614396,104280.0,104270.0,0.24831338]
[1737786237123,0.44614396,104280.0,104270.0,0.25834052]
[1737786237529,0.44614396,104280.0,104270.0,0.34666429]
[1737786238223,9.834e-05,104280.0,104270.0,0.70746429]
[1737786241636,9.834e-05,104280.0,104270.0,0.77830429]
[1737786242327,9.834e-05,104280.0,104270.0,0.81909907]
[1737786242835,9.834e-05,104280.0,104270.0,0.77830429]
[1737786243136,9.834e-05,104280.0,104270.0,0.81910001]
[1737786245141,0.59209317,104300.0,104270.0,0.66563001]
[1737786245338,0.59209317,104300.0,104290.0,0.15344]
[1737786245741,0.59209317,104300.0,104290.0,0.21634]
[1737786246834,0.59209317,104300.0,104290.0,0.30466377]
[1737786247937,0.19909317,104300.0,104290.0,0.70636142]
[1737786248141,0.19909317,104300.0,104290.0,0.73666142]
[1737786248735,0.19909317,104300.0,104290.0,0.69576377]
[1737786249129,0.19909317,104300.0,104290.0,0.73670044]
[1737786250947,0.19909317,104300.0,104290.0,0.69576377]
[1737786251339,0.19909317,104300.0,104290.0,0.73690105]
[1737786251736,0.19909317,104300.0,104290.0,0.74662542]
[1737786252444,0.19909317,104300.0,104290.0,0.70548814]
[1737786252643,0.00014338,104300.0,104290.0,0.70548814]
[1737786253044,0.00014338,104300.0,104290.0,0.74661717]
[1737786254040,0.00014338,104300.0,104290.0,0.70548814]
[1737786257445,0.00014338,104300.0,104290.0,0.34468814]
[1737786257645,0.00014338,104300.0,104290.0,0.29666437]
[1737786257947,0.03184338,104300.0,104290.0,0.29666437]
[1737786263245,0.03184338,104300.0,104290.0,0.3382022]
[1737786263446,0.03184338,104300.0,104290.0,0.29666437]
[1737786263647,0.03184338,104300.0,104290.0,0.35460021]
[1737786264241,0.03184338,104300.0,104290.0,0.39607301]
[1737786264741,0.03184338,104300.0,104290.0,0.33317301]
[1737786265548,0.03184338,104300.0,104290.0,0.29170021]
[1737786267552,0.03184338,104300.0,104290.0,0.33349454]
[1737786269351,0.117089,104300.0,104290.0,0.33349454]
[1737786270246,0.117089,104300.0,104290.0,0.39669454]
[1737786271456,0.085389,104300.0,104290.0,0.81543038]
[1737786271747,0.085389,104300.0,104290.0,0.84743038]
[1737786272346,0.085389,104300.0,104290.0,0.78949454]
[1737786272547,0.085389,104300.0,104290.0,0.84743038]
[1737786272745,0.085389,104300.0,104290.0,0.78949454]
[1737786273953,0.085389,104300.0,104290.0,0.84743038]
[1737786275048,0.085389,104300.0,104290.0,0.94331225]
[1737786275252,0.085389,104300.0,104290.0,0.98294849]
[1737786275557,0.25623218,104310.0,104290.0,0.82950849]
[1737786275753,0.25623218,104310.0,104300.0,0.63009768]
[1737786276059,0.3137722,104320.0,104310.0,0.153411]
[1737786276353,0.3137722,104320.0,104310.0,0.76897701]
[1737786277758,0.3137722,104320.0,104310.0,0.82953677]
[1737786279857,0.00014338,104330.0,104320.0,0.153396]
[1737786280162,0.00014338,104330.0,104320.0,0.28340605]
[1737786280362,0.00014338,104330.0,104320.0,0.24161172]
[1737786280664,0.00014338,104330.0,104320.0,0.28356504]
[1737786281053,0.00014338,104330.0,104320.0,0.35376504]
[1737786281961,0.00014338,104330.0,104320.0,0.71456504]
[1737786282359,0.3137722,104340.0,104330.0,0.153381]
[1737786282562,0.3137722,104340.0,104330.0,0.69999672]
[1737786283361,0.3137722,104340.0,104330.0,0.78821244]
[1737786283563,0.3137722,104340.0,104330.0,0.83769776]
[1737786283765,0.14267139,104350.0,104340.0,0.153367]
[1737786284063,0.14267139,104350.0,104340.0,0.64422946]
[1737786284460,0.14267139,104350.0,104340.0,0.60238272]
[1737786286768,0.14267139,104350.0,104340.0,0.223687]
[1737786286769,0.50347139,104350.0,104340.0,0.223687]
[1737786287958,0.50347139,104350.0,104340.0,0.31190272]
[1737786288172,0.36094338,104350.0,104340.0,0.31190272]
[1737786288668,0.36094338,104350.0,104340.0,0.32184116]
[1737786289765,0.36094338,104350.0,104340.0,0.38484116]
[1737786290365,0.00014338,104350.0,104340.0,0.38484116]
[1737786290573,0.36094338,104350.0,104340.0,0.25152116]
[1737786290877,0.42514338,104350.0,104340.0,0.25152116]
[1737786291474,0.06434338,104350.0,104340.0,0.25152116]
[1737786293471,0.00014338,104350.0,104340.0,0.25152116]
[1737786295880,0.00014338,104350.0,104340.0,0.61232116]
[1737786298782,0.03214338,104350.0,104340.0,0.61232116]
[1737786299082,0.06284338,104350.0,104340.0,0.61232116]
[1737786300281,0.42364338,104350.0,104340.0,0.16330544]
[1737786300684,0.6652111,104350.0,104340.0,0.00993844]
[1737786300885,0.153367,104340.0,104330.0,0.153377]
[1737786301181,0.544367,104340.0,104330.0,0.153377]
[1737786304888,0.544367,104340.0,104330.0,0.16349863]
[1737786309287,0.47921572,104340.0,104320.0,0.15353738]
[1737786309585,0.66479672,104330.0,104320.0,0.15353738]
[1737786309786,0.576581,104330.0,104320.0,0.15353738]
[1737786310287,0.576581,104330.0,104320.0,0.16359228]
[1737786311491,0.576581,104330.0,104320.0,0.15353738]
[1737786311985,0.66479672,104330.0,104320.0,0.15353738]
[1737786312183,0.66479672,104330.0,104320.0,0.00014338]
[1737786314193,0.80732473,104330.0,104320.0,0.00014338]
[1737786315093,0.153411,104310.0,104300.0,0.16475146]
[1737786315387,0.60242672,104310.0,104300.0,0.16475146]
[1737786315790,0.63422672,104310.0,104300.0,0.16475146]
[1737786316491,0.63422672,104310.0,104300.0,0.15486083]
[1737786316991,0.66722672,104310.0,104300.0,0.15486083]
[1737786317682,0.66722672,104310.0,104300.0,0.00143783]
[1737786318594,0.153426,104300.0,104290.0,0.1633039]
[1737786318792,0.514226,104300.0,104290.0,0.1633039]
[1737786318992,0.544626,104300.0,104290.0,0.1633039]
[1737786320497,0.63284172,104300.0,104290.0,0.15358038]
[1737786333199,0.544626,104300.0,104290.0,0.15358038]
[1737786333912,0.63284172,104300.0,104290.0,0.15358038]
[1737786334100,0.63284172,104300.0,104290.0,0.00014338]
[1737786337396,0.15344,104290.0,104280.0,0.00969139]
[1737786337601,0.60245572,104290.0,104280.0,0.00969139]
[1737786338404,0.60245572,104290.0,104280.0,9.617e-05]
[1737786338800,0.66635572,104290.0,104280.0,9.617e-05]
[1737786342517,0.80888373,104290.0,104280.0,9.617e-05]
[1737786343804,0.77863641,104290.0,104280.0,9.617e-05]
[1737786345801,0.71473641,104290.0,104280.0,0.15355117]
[1737786346007,0.8859806,104290.0,104280.0,0.15355117]
[1737786348914,0.71473641,104290.0,104280.0,0.15355117]
[1737786351714,0.71473641,104290.0,104280.0,0.16315745]
[1737786355517,0.50332801,104290.0,104280.0,0.26222452]
[1737786355905,0.47485881,104290.0,104280.0,0.26222452]
[1737786356111,0.47485881,104290.0,104280.0,0.22112585]
[1737786358413,0.47485881,104290.0,104280.0,0.16315745]
[1737786358620,2.92985881,104290.0,104280.0,0.16315745]
[1737786358821,3.14126721,104290.0,104280.0,0.16315745]
[1737786360615,3.08329881,104290.0,104280.0,0.22112585]
[1737786360815,3.08329881,104290.0,104280.0,0.16315745]
[1737786361020,3.14126721,104290.0,104280.0,0.16315745]
[1737786363919,3.08329881,104290.0,104280.0,0.16315745]
[1737786364516,2.92985881,104290.0,104280.0,0.22112585]
[1737786365420,2.92985881,104290.0,104280.0,0.26207639]
[1737786366626,2.56905881,104290.0,104280.0,0.62287639]
[1737786366829,2.56905881,104290.0,104280.0,0.68084479]
[1737786367429,2.56905881,104290.0,104280.0,0.62287639]
[1737786368126,2.92985881,104290.0,104280.0,0.22112585]
[1737786370131,3.14126721,104290.0,104280.0,0.16315745]
[1737786372124,3.08329881,104290.0,104280.0,0.22112585]
[1737786372324,3.14126721,104290.0,104280.0,0.16315745]
[1737786372924,3.14126721,104290.0,104280.0,0.15355117]
[1737786373131,3.17136721,104290.0,104280.0,0.15355117]
[1737786373324,3.20426721,104290.0,104280.0,0.15355117]
[1737786374629,3.20426721,104290.0,104280.0,9.617e-05]
[1737786374630,3.26223561,104290.0,104280.0,9.617e-05]
[1737786374830,0.153455,104280.0,104270.0,0.22957885]
[1737786375132,0.6623918,104280.0,104270.0,0.22957885]
[1737786376024,0.66248622,104280.0,104270.0,0.22957885]
[1737786376431,0.66248622,104280.0,104270.0,0.00014338]
[1737786381332,0.80501423,104280.0,104270.0,0.00014338]
[1737786381738,0.74704583,104280.0,104270.0,0.00014338]
[1737786385039,0.86104822,104280.0,104270.0,0.00014338]
[1737786388952,0.80307982,104280.0,104270.0,0.21158178]
[1737786389147,0.80307982,104280.0,104270.0,0.27568178]
[1737786389546,0.44227982,104280.0,104270.0,0.27568178]
[1737786389748,0.28882482,104280.0,104270.0,0.27568178]
[1737786390755,2.74382482,104280.0,104270.0,0.27568178]
[1737786392456,2.71162482,104280.0,104270.0,0.27568178]
[1737786393155,2.45509442,104280.0,104270.0,0.27568178]
[1737786394256,2.45509442,104280.0,104270.0,0.70620178]
[1737786397957,2.45509442,104280.0,104270.0,0.76417018]
[1737786399263,2.45509442,104280.0,104270.0,0.70620178]
[1737786399559,2.45509442,104280.0,104270.0,0.76417018]
[1737786400149,2.45509442,104280.0,104270.0,0.70620178]
[1737786401566,2.45509442,104280.0,104270.0,0.70608178]
[1737786412170,2.48639442,104280.0,104270.0,0.70608178]
[1737786417757,2.48639442,104280.0,104270.0,0.34528178]
[1737786418370,2.48639442,104280.0,104270.0,0.70608178]
[1737786420072,2.48639442,104280.0,104270.0,0.21158178]
[1737786420372,2.48639442,104280.0,104270.0,0.22317338]
[1737786420573,2.48639442,104280.0,104270.0,0.28114178]
[1737786421167,2.48639442,104280.0,104270.0,0.15361338]
[1737786421471,2.78340339,104280.0,104270.0,0.44033162]
[1737786422074,2.72543499,104280.0,104270.0,0.49830002]
[1737786422579,2.57197999,104280.0,104270.0,0.49830002]
[1737786424279,2.60039681,104280.0,104270.0,0.21158178]
[1737786428270,2.60039681,104280.0,104270.0,0.63035018]
[1737786428574,2.60039681,104280.0,104270.0,0.57238178]
[1737786429079,2.60039681,104280.0,104270.0,0.63035018]
[1737786429279,2.60039681,104280.0,104270.0,0.70320431]
[1737786429469,2.60039681,104280.0,104270.0,0.73490431]
[1737786430276,2.56909681,104280.0,104270.0,0.73490431]
[1737786431172,2.45509442,104280.0,104270.0,1.36649684]
[1737786432577,2.45509442,104280.0,104270.0,1.4623971]
[1737786433378,2.3545723,104280.0,104270.0,1.5203655]
[1737786433573,1.27877863,104280.0,104270.0,1.62109406]
[1737786434582,1.27877863,104280.0,104270.0,1.56312566]
[1737786434968,1.27877863,104280.0,104270.0,1.57752566]
[1737786436171,0.96979764,104280.0,104270.0,1.93549406]
[1737786436481,0.7060421,104280.0,104270.0,1.93549406]
[1737786436689,0.6790421,104280.0,104270.0,1.64877582]
[1737786437380,0.6700421,104280.0,104270.0,1.64877582]
[1737786438084,0.5786921,104280.0,104270.0,1.64877582]
[1737786438274,0.5594621,104280.0,104270.0,1.64877582]
[1737786438478,0.5493721,104280.0,104270.0,1.64877582]
[1737786438772,0.05430842,104290.0,104270.0,1.80797582]
[1737786438975,0.17124419,104310.0,104280.0,0.5669052]
[1737786439170,0.17124419,104310.0,104300.0,1.0489312]
[1737786439377,0.01632098,104320.0,104310.0,0.153411]
[1737786439582,0.01632098,104320.0,104310.0,0.6340794]
[1737786440079,0.11425005,104320.0,104310.0,0.6368627]
[1737786440378,0.11425005,104320.0,104310.0,0.7500162]
[1737786441782,0.11425005,104320.0,104310.0,0.75249892]
[1737786441971,0.11425005,104320.0,104310.0,0.84836241]
[1737786442386,0.00014338,104330.0,104310.0,0.69495141]
[1737786442579,0.00014338,104330.0,104320.0,0.67194996]
[1737786443180,0.0325,104340.0,104330.0,0.153381]
[1737786443377,0.0325,104340.0,104330.0,0.72246892]
[1737786443774,0.01632098,104350.0,104330.0,0.56908792]
[1737786443973,0.01632098,104350.0,104340.0,0.69055492]
[1737786444382,0.2193555,104360.0,104350.0,0.153352]
[1737786444580,0.00014338,104360.0,104350.0,0.76009992]
[1737786445286,0.0634,104380.0,104370.0,0.153323]
[1737786445581,0.0634,104380.0,104370.0,0.69051092]
[1737786447280,0.0634,104380.0,104370.0,0.31107696]
[1737786447484,0.4242,104380.0,104370.0,0.31107696]
[1737786447980,0.4242,104380.0,104370.0,0.39927092]
[1737786448380,0.4242,104380.0,104370.0,0.24151696]
[1737786448581,0.4242,104380.0,104370.0,0.32059983]
[1737786450285,0.4242,104380.0,104370.0,0.25107983]
[1737786450481,0.577508,104380.0,104370.0,0.31103696]
[1737786452083,0.577508,104380.0,104370.0,0.24151696]
[1737786455086,0.577508,104380.0,104360.0,0.09811997]
[1737786455285,0.514123,104370.0,104360.0,0.32093397]
[1737786455689,0.153323,104370.0,104360.0,0.32093397]
[1737786456488,0.514123,104370.0,104360.0,0.32093397]
[1737786456687,0.153323,104370.0,104360.0,0.32093397]
[1737786458597,0.514123,104370.0,104360.0,0.32093397]
[1737786460001,0.153323,104370.0,104360.0,0.32093397]
[1737786460392,0.514123,104370.0,104360.0,0.32093397]
[1737786461892,0.153323,104370.0,104360.0,0.32093397]
[1737786462702,0.514123,104370.0,104360.0,0.32093397]
[1737786463302,0.153323,104370.0,104360.0,0.32093397]
[1737786464601,0.514123,104370.0,104360.0,0.32093397]
[1737786465703,0.546923,104370.0,104360.0,0.32093397]
[1737786468606,0.3936,104370.0,104360.0,0.32093397]
[1737786474100,0.3608,104370.0,104360.0,0.32093397]
[1737786475097,0.3931,104370.0,104360.0,0.32093397]
[1737786476607,0.3931,104370.0,104360.0,0.49210848]
[1737786477706,0.3931,104370.0,104360.0,0.42262848]
[1737786477905,0.3931,104370.0,104360.0,0.55694848]
[1737786479406,0.3864,104370.0,104360.0,0.55694848]
[1737786482205,0.3864,104370.0,104360.0,0.48722848]
[1737786482407,0.52916734,104370.0,104360.0,0.78598888]
[1737786482609,0.52916734,104370.0,104360.0,0.69779492]
[1737786482799,0.68249034,104370.0,104360.0,0.63319492]
[1737786483106,0.68249034,104370.0,104360.0,0.56347492]
[1737786485708,0.68249034,104370.0,104360.0,0.55369229]
[1737786486004,0.7706843,104370.0,104360.0,0.40035829]
[1737786491108,0.79810005,104370.0,104360.0,0.00014338]
[1737786492505,0.80774641,104370.0,104360.0,0.00014338]
[1737786495615,0.63756332,104370.0,104360.0,0.00014338]
[1737786497715,0.78048385,104370.0,104360.0,0.00014338]
[1737786501411,0.69228989,104370.0,104360.0,0.00014338]
[1737786505216,0.65998989,104370.0,104360.0,0.06174338]
[1737786506118,0.83017298,104370.0,104360.0,0.06174338]
[1737786508514,0.91836694,104370.0,104360.0,0.06174338]
[1737786508917,0.91836694,104370.0,104360.0,0.00014338]
[1737786509218,0.95136694,104370.0,104360.0,0.00014338]
[1737786509425,0.78118385,104370.0,104360.0,0.00014338]
[1737786513729,0.75086732,104370.0,104360.0,0.00014338]
[1737786519036,0.69298989,104370.0,104360.0,0.00014338]
[1737786519235,0.71786732,104370.0,104360.0,0.00014338]
[1737786519530,0.74512988,104370.0,104360.0,0.00014338]
[1737786520635,0.77572988,104370.0,104360.0,0.00014338]
[1737786525840,0.83360731,104370.0,104360.0,0.00014338]
[1737786527041,0.77572988,104370.0,104360.0,0.00014338]
[1737786531342,0.68725245,104370.0,104360.0,0.21135781]
[1737786531544,0.53392945,104370.0,104360.0,0.21135781]
[1737786531849,0.52428309,104370.0,104360.0,0.30595781]
[1737786533443,0.52428309,104370.0,104360.0,0.36383524]
[1737786535248,0.46854779,104370.0,104360.0,0.76405015]
[1737786535455,0.46854779,104370.0,104360.0,0.83353015]
[1737786535650,0.11444779,104370.0,104360.0,1.35064333]
[1737786535854,0.11444779,104370.0,104360.0,1.26251809]
[1737786536150,0.11444779,104370.0,104360.0,1.44109606]
[1737786537454,0.11444779,104370.0,104360.0,1.40080783]
[1737786538159,0.11444779,104370.0,104360.0,1.36037144]
[1737786538851,0.00014338,104390.0,104380.0,0.153308]
[1737786539154,0.00014338,104390.0,104380.0,0.24143324]
[1737786539354,0.36094338,104390.0,104380.0,0.24143324]
[1737786539554,0.36094338,104390.0,104380.0,0.33743324]
[1737786539746,0.00014338,104390.0,104380.0,0.33743324]
[1737786539942,0.36094338,104390.0,104380.0,0.33743324]
[1737786541056,0.51423638,104390.0,104380.0,0.249308]
[1737786541453,0.51423638,104390.0,104370.0,0.31092524]
[1737786541758,0.3608,104380.0,104370.0,0.31092524]
[1737786541958,0.54523638,104390.0,104370.0,0.31092524]
[1737786542360,0.3608,104380.0,104370.0,0.31092524]
[1737786543062,0.3608,104380.0,104370.0,0.71174846]
[1737786545360,0.3608,104380.0,104370.0,0.64226846]
[1737786545553,0.514108,104380.0,104370.0,0.71174846]
[1737786546652,0.514108,104380.0,104370.0,0.31092524]
[1737786547159,0.514108,104380.0,104370.0,0.15332]
[1737786547555,0.580208,104380.0,104370.0,0.15332]
[1737786549362,0.514108,104380.0,104370.0,0.24144524]
[1737786557063,0.3608,104380.0,104370.0,0.24144524]
[1737786557462,0.3608,104380.0,104370.0,0.32957048]
[1737786558673,0.00014338,104390.0,104380.0,0.153308]
[1737786558863,0.00014338,104390.0,104380.0,0.24143324]
[1737786559166,0.00014338,104390.0,104380.0,0.27343324]
[1737786559367,0.00014338,104390.0,104380.0,0.30343324]
[1737786564262,0.00014338,104390.0,104380.0,0.31315795]
[1737786564760,0.00014338,104390.0,104380.0,0.71430917]
[1737786565867,0.00014338,104390.0,104380.0,0.74185225]
[1737786567963,0.36094338,104390.0,104380.0,0.74185225]
[1737786568169,0.44660368,104390.0,104380.0,0.74185225]
[1737786571377,0.44660368,104390.0,104380.0,0.68401809]
[1737786572367,0.44660368,104390.0,104380.0,0.45497625]
[1737786575970,0.44660368,104390.0,104380.0,0.39297625]
[1737786576170,0.59989668,104390.0,104380.0,0.39297625]
[1737786578074,0.59989668,104390.0,104380.0,0.18183409]
[1737786578075,0.65773084,104390.0,104380.0,0.18183409]
[1737786578570,0.65773084,104390.0,104380.0,0.17210938]
[1737786579070,0.59989668,104390.0,104380.0,0.17210938]
[1737786579271,0.59989668,104390.0,104380.0,0.38325154]
[1737786579469,0.71434447,104390.0,104380.0,0.21114216]
[1737786581874,0.71434447,104390.0,104380.0,0.153308]
[1737786583077,0.71434447,104390.0,104380.0,0.32541738]
[1737786583672,0.72407424,104390.0,104380.0,0.33523087]
[1737786586386,0.71434447,104390.0,104380.0,0.39306503]
[1737786586580,0.62868417,104390.0,104380.0,0.39306503]
[1737786587269,0.47539117,104390.0,104380.0,0.45089919]
[1737786587475,0.47539117,104390.0,104380.0,0.54539919]
[1737786588570,0.47539117,104390.0,104380.0,0.48756503]
[1737786589472,0.62868417,104390.0,104380.0,0.48756503]
[1737786590875,0.62868417,104390.0,104380.0,0.71660687]
[1737786601572,0.62868417,104390.0,104380.0,0.62587271]
[1737786601887,0.62868417,104390.0,104380.0,0.68370687]
[1737786602386,0.47539117,104390.0,104380.0,0.77154103]
[1737786602982,0.11459117,104390.0,104380.0,0.77154103]
[1737786603580,0.47539117,104390.0,104380.0,0.77154103]
[1737786604188,0.11459117,104390.0,104380.0,0.77154103]
[1737786604487,0.47539117,104390.0,104380.0,0.77154103]
[1737786604680,0.47539117,104390.0,104380.0,0.71370687]
[1737786606079,0.47539117,104390.0,104380.0,0.77154103]
[1737786606583,0.11459117,104390.0,104380.0,1.13234103]
[1737786606989,0.11459117,104390.0,104380.0,1.17267346]
[1737786607482,0.200471,104390.0,104380.0,1.00056408]
[1737786607686,0.200471,104390.0,104380.0,0.96023165]
[1737786609487,0.200471,104390.0,104380.0,0.54159749]
[1737786610081,0.561271,104390.0,104380.0,0.54159749]
[1737786610583,0.714564,104390.0,104380.0,0.38234984]
[1737786610778,0.810664,104390.0,104380.0,0.38234984]
[1737786610984,0.810664,104390.0,104380.0,0.440184]
[1737786611989,0.61033638,104390.0,104380.0,0.7460862]
[1737786612985,0.61033638,104390.0,104380.0,0.68825204]
[1737786613998,0.61033638,104390.0,104380.0,0.7460862]
[1737786614983,0.61033638,104390.0,104380.0,0.80392036]
[1737786615189,0.61033638,104390.0,104380.0,0.7460862]
[1737786615390,0.61033638,104390.0,104380.0,0.80392036]
[1737786615592,0.39344338,104390.0,104380.0,0.80392036]
[1737786615792,0.36094338,104390.0,104380.0,0.86702036]
[1737786615990,0.36094338,104390.0,104380.0,0.89892036]
[1737786616291,0.561271,104390.0,104380.0,0.53623503]
[1737786618394,0.200471,104390.0,104380.0,0.89703503]
[1737786620091,0.08602321,104390.0,104380.0,1.12671331]
[1737786624203,0.00014338,104390.0,104380.0,1.60333435]
[1737786630515,0.00014338,104390.0,104380.0,1.25846006]
[1737786632015,0.00014338,104390.0,104380.0,1.35425926]
[1737786647428,0.00014338,104390.0,104380.0,1.70920663]
[1737786650333,0.00014338,104390.0,104380.0,1.74951872]
[1737786658627,0.00014338,104390.0,104380.0,1.65371952]
[1737786659434,0.00014338,104390.0,104380.0,0.91747165]
[1737786659641,0.03074338,104390.0,104380.0,0.49883749]
[1737786659831,0.03074338,104390.0,104380.0,0.5279654]
[1737786660337,0.03074338,104390.0,104380.0,0.4585254]
[1737786662744,0.231071,104390.0,104380.0,1.09090946]
[1737786664130,0.591871,104390.0,104380.0,1.09090946]
[1737786664534,0.591871,104390.0,104380.0,1.0330753]
[1737786664734,0.591871,104390.0,104380.0,1.09090946]
[1737786664934,0.80299816,104390.0,104380.0,1.0330753]
[1737786665540,0.745164,104390.0,104380.0,1.09090946]
[1737786665940,0.80299816,104390.0,104380.0,1.0330753]
[1737786666330,0.68855037,104390.0,104380.0,0.38310014]
[1737786666535,0.68855037,104390.0,104380.0,0.22979214]